[Event "Titled Tuesday Blitz April 11 Late 2023"]
[White "Dobre, Claudiu-Cristian"]
[Black "Marcziter, Dmitrii"]
[WhiteFideId "1211854"]
[BlackFideId "13900765"]
[WhiteElo "2207"]
[BlackElo "2162"]
[Result "1-0"]
[Round "02"]
[TimeControl "180+2"]
[Date "2023.04.11"]
[WhiteClock "0:00:21"]
[BlackClock "0:00:25"]

1. e4 {[%clk 0:03:00]}  c5 {[%clk 0:02:53]} 2. b3 {[%clk 0:03:00]}  d5 {[%clk 0:02:52]} 3. exd5 {[%clk 0:02:59]}  Qxd5 {[%clk 0:02:53]} 4. Nc3 {[%clk 0:03:00]}  Qd8 {[%clk 0:02:52]} 5. Nf3 {[%clk 0:02:54]}  Nf6 {[%clk 0:02:52]} 6. Bb2 {[%clk 0:02:52]}  a6 {[%clk 0:02:51]} 7. d4 {[%clk 0:02:30]}  cxd4 {[%clk 0:02:48]} 8. Qxd4 {[%clk 0:02:28]}  Qxd4 {[%clk 0:02:44]} 9. Nxd4 {[%clk 0:02:28]}  e5 {[%clk 0:02:45]} 10. Nf3 {[%clk 0:02:28]}  Nc6 {[%clk 0:02:44]} 11. Bc4 {[%clk 0:02:06]}  Bb4 {[%clk 0:02:38]} 12. O-O-O {[%clk 0:02:02]}  O-O {[%clk 0:02:36]} 13. Nd5 {[%clk 0:02:00]}  Nxd5 {[%clk 0:02:32]} 14. Bxd5 {[%clk 0:02:00]}  Bc5 {[%clk 0:02:23]} 15. Nxe5 {[%clk 0:01:54]}  Nxe5 {[%clk 0:02:18]} 16. Bxe5 {[%clk 0:01:53]}  Bxf2 {[%clk 0:02:16]} 17. Rhf1 {[%clk 0:01:49]}  Be3+ {[%clk 0:02:16]} 18. Kb1 {[%clk 0:01:47]}  Bg4 {[%clk 0:02:00]} 19. Rde1 {[%clk 0:01:46]}  Bc5 {[%clk 0:01:49]} 20. Bxb7 {[%clk 0:01:40]}  Ra7 {[%clk 0:01:48]} 21. Bf3 {[%clk 0:01:34]}  Bf5 {[%clk 0:01:43]} 22. Be4 {[%clk 0:01:33]}  Be6 {[%clk 0:01:38]} 23. c4 {[%clk 0:01:26]}  a5 {[%clk 0:01:36]} 24. Bd5 {[%clk 0:01:20]}  Bg4 {[%clk 0:01:33]} 25. Bc3 {[%clk 0:01:09]}  Bb4 {[%clk 0:01:26]} 26. Bxb4 {[%clk 0:01:08]}  axb4 {[%clk 0:01:21]} 27. Kb2 {[%clk 0:00:39]}  Bh5 {[%clk 0:01:19]} 28. Re5 {[%clk 0:00:37]}  Bg6 {[%clk 0:01:19]} 29. Rfe1 {[%clk 0:00:36]}  h6 {[%clk 0:01:12]} 30. Re8 {[%clk 0:00:35]}  Rxe8 {[%clk 0:01:10]} 31. Rxe8+ {[%clk 0:00:34]}  Kh7 {[%clk 0:01:11]} 32. c5 {[%clk 0:00:34]}  Rc7 {[%clk 0:01:07]} 33. c6 {[%clk 0:00:34]}  f5 {[%clk 0:00:38]} 34. Bg8+ {[%clk 0:00:33]}  Kh8 {[%clk 0:00:36]} 35. Bf7+ {[%clk 0:00:33]}  Kh7 {[%clk 0:00:36]} 36. Bxg6+ {[%clk 0:00:33]}  Kxg6 {[%clk 0:00:36]} 37. Re6+ {[%clk 0:00:32]}  Kf7 {[%clk 0:00:35]} 38. Rd6 {[%clk 0:00:30]}  Ke7 {[%clk 0:00:33]} 39. Rd7+ {[%clk 0:00:26]}  Rxd7 {[%clk 0:00:33]} 40. cxd7 {[%clk 0:00:26]}  Kxd7 {[%clk 0:00:34]} 41. a4 {[%clk 0:00:20]}  bxa3+ {[%clk 0:00:34]} 42. Kxa3 {[%clk 0:00:21]}  f4 {[%clk 0:00:34]} 43. Kb4 {[%clk 0:00:20]}  g5 {[%clk 0:00:34]} 44. Kc5 {[%clk 0:00:19]}  h5 {[%clk 0:00:34]} 45. Kd4 {[%clk 0:00:18]}  g4 {[%clk 0:00:34]} 46. Ke4 {[%clk 0:00:18]}  f3 {[%clk 0:00:19]} 47. gxf3 {[%clk 0:00:18]}  gxf3 {[%clk 0:00:18]} 48. Kxf3 {[%clk 0:00:18]}  Kc6 {[%clk 0:00:19]} 49. h4 {[%clk 0:00:17]}  Kb5 {[%clk 0:00:20]} 50. Kf4 {[%clk 0:00:17]}  Kb4 {[%clk 0:00:20]} 51. Kg5 {[%clk 0:00:18]}  Kxb3 {[%clk 0:00:21]} 52. Kxh5 {[%clk 0:00:18]}  Kc4 {[%clk 0:00:22]} 53. Kg6 {[%clk 0:00:19]}  Kd5 {[%clk 0:00:23]} 54. Kg7 {[%clk 0:00:19]}  Ke6 {[%clk 0:00:24]} 55. h5 {[%clk 0:00:20]}  Ke7 {[%clk 0:00:25]} 56. h6 {[%clk 0:00:21]} 1-0


[Site "https://www.chess.com"]

[Event "Titled Tuesday Blitz April 11 Late 2023"]
[White "Bach, Matthias"]
[Black "Tomaszewski, Kacper"]
[WhiteFideId "4603168"]
[BlackFideId "1127373"]
[WhiteElo "2130"]
[BlackElo "2211"]
[Result "0-1"]
[Round "02"]
[TimeControl "180+2"]
[Date "2023.04.11"]
[WhiteClock "0:00:49"]
[BlackClock "0:01:16"]

1. d4 {[%clk 0:02:58]}  d6 {[%clk 0:02:59]} 2. f4 {[%clk 0:02:57]}  f5 {[%clk 0:02:57]} 3. Nf3 {[%clk 0:02:56]}  Nf6 {[%clk 0:02:58]} 4. g3 {[%clk 0:02:57]}  g6 {[%clk 0:02:56]} 5. Bg2 {[%clk 0:02:56]}  Bg7 {[%clk 0:02:56]} 6. O-O {[%clk 0:02:57]}  O-O {[%clk 0:02:57]} 7. c4 {[%clk 0:02:57]}  Nc6 {[%clk 0:02:57]} 8. d5 {[%clk 0:02:54]}  Na5 {[%clk 0:02:57]} 9. Qc2 {[%clk 0:02:51]}  c5 {[%clk 0:02:52]} 10. Bd2 {[%clk 0:02:43]}  Ne4 {[%clk 0:02:49]} 11. Bxa5 {[%clk 0:02:36]}  Qxa5 {[%clk 0:02:49]} 12. Nbd2 {[%clk 0:02:36]}  Bd4+ {[%clk 0:02:25]} 13. Nxd4 {[%clk 0:02:34]}  Qxd2 {[%clk 0:02:22]} 14. Qxd2 {[%clk 0:02:20]}  Nxd2 {[%clk 0:02:22]} 15. Rfd1 {[%clk 0:02:20]}  Nxc4 {[%clk 0:02:19]} 16. Nb5 {[%clk 0:02:04]}  Nxb2 {[%clk 0:02:12]} 17. Rdc1 {[%clk 0:02:03]}  Bd7 {[%clk 0:02:05]} 18. Nc7 {[%clk 0:01:36]}  Rab8 {[%clk 0:01:52]} 19. Rab1 {[%clk 0:01:23]}  Na4 {[%clk 0:01:50]} 20. Ne6 {[%clk 0:01:18]}  Bxe6 {[%clk 0:01:48]} 21. dxe6 {[%clk 0:01:18]}  b5 {[%clk 0:01:38]} 22. e4 {[%clk 0:01:16]}  b4 {[%clk 0:01:34]} 23. e5 {[%clk 0:01:10]}  Nc3 {[%clk 0:01:31]} 24. Rb2 {[%clk 0:01:02]}  dxe5 {[%clk 0:01:30]} 25. fxe5 {[%clk 0:01:01]}  Rfd8 {[%clk 0:01:31]} 26. Bc6 {[%clk 0:00:57]}  a5 {[%clk 0:01:27]} 27. Bd7 {[%clk 0:00:55]}  a4 {[%clk 0:01:24]} 28. Rd2 {[%clk 0:00:54]}  c4 {[%clk 0:01:17]} 29. Rd4 {[%clk 0:00:49]}  Ne2+ {[%clk 0:01:16]} 0-1


[Site "https://www.chess.com"]

[Event "Titled Tuesday Blitz April 11 Late 2023"]
[White "Korkmaz, Necmettin"]
[Black "Ward, Ieuan C"]
[WhiteFideId "6303285"]
[BlackFideId "406627"]
[WhiteElo "2097"]
[BlackElo "2028"]
[Result "0-1"]
[Round "02"]
[TimeControl "180+2"]
[Date "2023.04.11"]
[WhiteClock "0:00:17"]
[BlackClock "0:00:41"]

1. e4 {[%clk 0:03:00]}  e5 {[%clk 0:02:57]} 2. Nf3 {[%clk 0:02:59]}  Nc6 {[%clk 0:02:58]} 3. Bc4 {[%clk 0:02:53]}  Bc5 {[%clk 0:02:57]} 4. b4 {[%clk 0:02:52]}  Bxb4 {[%clk 0:02:56]} 5. c3 {[%clk 0:02:53]}  Ba5 {[%clk 0:02:57]} 6. d4 {[%clk 0:02:52]}  exd4 {[%clk 0:02:56]} 7. O-O {[%clk 0:02:51]}  dxc3 {[%clk 0:02:55]} 8. Qb3 {[%clk 0:02:37]}  Qf6 {[%clk 0:02:56]} 9. e5 {[%clk 0:02:34]}  Qg6 {[%clk 0:02:56]} 10. Nxc3 {[%clk 0:02:33]}  Nge7 {[%clk 0:02:54]} 11. Ba3 {[%clk 0:02:10]}  O-O {[%clk 0:02:51]} 12. Nd5 {[%clk 0:02:10]}  Nxd5 {[%clk 0:02:48]} 13. Bxf8 {[%clk 0:02:08]}  Nf4 {[%clk 0:02:44]} 14. Nh4 {[%clk 0:02:07]}  Qg4 {[%clk 0:02:45]} 15. Qg3 {[%clk 0:02:03]}  d5 {[%clk 0:02:37]} 16. exd6 {[%clk 0:01:23]}  Kxf8 {[%clk 0:02:34]} 17. dxc7 {[%clk 0:01:14]}  Bxc7 {[%clk 0:02:32]} 18. Qxg4 {[%clk 0:01:14]}  Bxg4 {[%clk 0:02:31]} 19. Rab1 {[%clk 0:01:11]}  Bb6 {[%clk 0:02:26]} 20. h3 {[%clk 0:01:09]}  Be2 {[%clk 0:02:20]} 21. Rfc1 {[%clk 0:01:07]}  Bxc4 {[%clk 0:02:17]} 22. Rxc4 {[%clk 0:01:08]}  Nd3 {[%clk 0:02:13]} 23. Rb3 {[%clk 0:00:48]}  Nxf2 {[%clk 0:02:08]} 24. Rxb6 {[%clk 0:00:47]}  axb6 {[%clk 0:02:07]} 25. Kxf2 {[%clk 0:00:48]}  Rxa2+ {[%clk 0:02:08]} 26. Kg3 {[%clk 0:00:48]}  Rb2 {[%clk 0:02:03]} 27. Nf5 {[%clk 0:00:47]}  Rb3+ {[%clk 0:01:57]} 28. Kf2 {[%clk 0:00:45]}  b5 {[%clk 0:01:47]} 29. Re4 {[%clk 0:00:42]}  Rb2+ {[%clk 0:01:45]} 30. Kf1 {[%clk 0:00:40]}  f6 {[%clk 0:01:22]} 31. Nd6 {[%clk 0:00:40]}  Ne5 {[%clk 0:01:21]} 32. Nxb7 {[%clk 0:00:39]}  b4 {[%clk 0:01:19]} 33. Nc5 {[%clk 0:00:37]}  Kf7 {[%clk 0:01:18]} 34. Rd4 {[%clk 0:00:37]}  Rb1+ {[%clk 0:01:14]} 35. Kf2 {[%clk 0:00:36]}  g5 {[%clk 0:01:11]} 36. g4 {[%clk 0:00:34]}  Rh1 {[%clk 0:01:09]} 37. Kg2 {[%clk 0:00:33]}  Rh2+ {[%clk 0:01:08]} 38. Kg3 {[%clk 0:00:31]}  Rc2 {[%clk 0:01:06]} 39. Ne4 {[%clk 0:00:29]}  b3 {[%clk 0:01:00]} 40. Rb4 {[%clk 0:00:29]}  b2 {[%clk 0:00:59]} 41. Rb7+ {[%clk 0:00:29]}  Ke6 {[%clk 0:00:58]} 42. Nf2 {[%clk 0:00:22]}  Nc4 {[%clk 0:00:50]} 43. Ne4 {[%clk 0:00:20]}  Rc1 {[%clk 0:00:46]} 44. Nc5+ {[%clk 0:00:20]}  Kd5 {[%clk 0:00:42]} 45. Nd3 {[%clk 0:00:16]}  b1=Q {[%clk 0:00:42]} 46. Rxb1 {[%clk 0:00:16]}  Rxb1 {[%clk 0:00:41]} 47. Nf2 {[%clk 0:00:17]}  Rb3+ {[%clk 0:00:41]} 0-1


[Site "https://www.chess.com"]

[Event "Titled Tuesday Blitz April 11 Late 2023"]
[White "Ozalp, Burak"]
[Black "Aggelis, Nikolaos"]
[WhiteFideId "6314210"]
[BlackFideId "4213220"]
[WhiteElo "2106"]
[BlackElo "2189"]
[Result "0-1"]
[Round "02"]
[TimeControl "180+2"]
[Date "2023.04.11"]
[WhiteClock "0:00:05"]
[BlackClock "0:00:25"]

1. c4 {[%clk 0:03:00]}  c5 {[%clk 0:02:58]} 2. Nf3 {[%clk 0:02:59]}  b6 {[%clk 0:02:56]} 3. e3 {[%clk 0:02:59]}  Bb7 {[%clk 0:02:57]} 4. d4 {[%clk 0:02:59]}  cxd4 {[%clk 0:02:56]} 5. exd4 {[%clk 0:02:59]}  g6 {[%clk 0:02:56]} 6. Nc3 {[%clk 0:02:58]}  Bg7 {[%clk 0:02:57]} 7. Be3 {[%clk 0:02:58]}  Nf6 {[%clk 0:02:57]} 8. Rc1 {[%clk 0:02:57]}  d5 {[%clk 0:02:58]} 9. Ne5 {[%clk 0:02:49]}  O-O {[%clk 0:02:58]} 10. Be2 {[%clk 0:02:44]}  Nc6 {[%clk 0:02:58]} 11. Bf3 {[%clk 0:02:38]}  Na5 {[%clk 0:02:45]} 12. b4 {[%clk 0:02:26]}  Nc6 {[%clk 0:02:39]} 13. Nxc6 {[%clk 0:02:11]}  Bxc6 {[%clk 0:02:38]} 14. O-O {[%clk 0:02:12]}  Rc8 {[%clk 0:02:36]} 15. b5 {[%clk 0:02:11]}  Ba8 {[%clk 0:02:33]} 16. c5 {[%clk 0:02:12]}  bxc5 {[%clk 0:02:21]} 17. dxc5 {[%clk 0:02:09]}  Qa5 {[%clk 0:02:20]} 18. c6 {[%clk 0:02:03]}  Rfd8 {[%clk 0:02:16]} 19. Bd4 {[%clk 0:02:03]}  a6 {[%clk 0:02:11]} 20. a4 {[%clk 0:02:02]}  Ne4 {[%clk 0:02:08]} 21. Bxg7 {[%clk 0:01:58]}  Kxg7 {[%clk 0:02:08]} 22. Qd4+ {[%clk 0:01:45]}  f6 {[%clk 0:01:50]} 23. Nxe4 {[%clk 0:01:39]}  dxe4 {[%clk 0:01:49]} 24. Qxe4 {[%clk 0:01:40]}  e5 {[%clk 0:01:48]} 25. Rfd1 {[%clk 0:01:09]}  axb5 {[%clk 0:01:42]} 26. Rxd8 {[%clk 0:01:08]}  Rxd8 {[%clk 0:01:41]} 27. axb5 {[%clk 0:00:42]}  Qxb5 {[%clk 0:01:39]} 28. h4 {[%clk 0:00:37]}  Rc8 {[%clk 0:01:22]} 29. h5 {[%clk 0:00:32]}  Rc7 {[%clk 0:01:16]} 30. hxg6 {[%clk 0:00:30]}  hxg6 {[%clk 0:01:14]} 31. Qd5 {[%clk 0:00:16]}  Qxd5 {[%clk 0:01:11]} 32. Bxd5 {[%clk 0:00:17]}  Kf8 {[%clk 0:01:11]} 33. Ra1 {[%clk 0:00:17]}  Bxc6 {[%clk 0:01:06]} 34. Rc1 {[%clk 0:00:16]}  Bxd5 {[%clk 0:01:00]} 35. Rxc7 {[%clk 0:00:16]}  Bf7 {[%clk 0:01:00]} 36. g3 {[%clk 0:00:16]}  Kg7 {[%clk 0:01:00]} 37. Kf1 {[%clk 0:00:16]}  g5 {[%clk 0:00:59]} 38. Ke1 {[%clk 0:00:17]}  Kg6 {[%clk 0:00:59]} 39. Kd2 {[%clk 0:00:17]}  Bd5 {[%clk 0:00:56]} 40. Kd3 {[%clk 0:00:17]}  Kf5 {[%clk 0:00:54]} 41. Ke3 {[%clk 0:00:16]}  Bb3 {[%clk 0:00:50]} 42. Rc5 {[%clk 0:00:16]}  Bd1 {[%clk 0:00:49]} 43. f3 {[%clk 0:00:15]}  g4 {[%clk 0:00:45]} 44. f4 {[%clk 0:00:11]}  Bf3 {[%clk 0:00:45]} 45. fxe5 {[%clk 0:00:10]}  fxe5 {[%clk 0:00:46]} 46. Rc8 {[%clk 0:00:10]}  Bd5 {[%clk 0:00:41]} 47. Rf8+ {[%clk 0:00:09]}  Kg5 {[%clk 0:00:41]} 48. Re8 {[%clk 0:00:09]}  Kf5 {[%clk 0:00:41]} 49. Rd8 {[%clk 0:00:09]}  Bf3 {[%clk 0:00:38]} 50. Rb8 {[%clk 0:00:09]}  Bd5 {[%clk 0:00:36]} 51. Rb4 {[%clk 0:00:09]}  Bf3 {[%clk 0:00:36]} 52. Kd2 {[%clk 0:00:09]}  Bd5 {[%clk 0:00:33]} 53. Kc3 {[%clk 0:00:09]}  Bg2 {[%clk 0:00:32]} 54. Ra4 {[%clk 0:00:09]}  Bh1 {[%clk 0:00:30]} 55. Kb4 {[%clk 0:00:08]}  Ke4 {[%clk 0:00:30]} 56. Ra3 {[%clk 0:00:08]}  Bg2 {[%clk 0:00:28]} 57. Kc5 {[%clk 0:00:08]}  Bf1 {[%clk 0:00:28]} 58. Kd6 {[%clk 0:00:08]}  Be2 {[%clk 0:00:28]} 59. Ke6 {[%clk 0:00:08]}  Bd3 {[%clk 0:00:24]} 60. Rxd3 {[%clk 0:00:05]}  Kxd3 {[%clk 0:00:25]} 61. Kxe5 {[%clk 0:00:05]}  Ke3 {[%clk 0:00:24]} 62. Kf5 {[%clk 0:00:04]}  Kf3 {[%clk 0:00:24]} 63. Ke5 {[%clk 0:00:05]}  Kxg3 {[%clk 0:00:24]} 64. Ke4 {[%clk 0:00:05]}  Kh2 {[%clk 0:00:25]} 0-1


[Site "https://www.chess.com"]

[Event "Titled Tuesday Blitz April 11 Late 2023"]
[White "Karamsetty, Jeevan"]
[Black "Rodriguez Santiago, Jaime"]
[WhiteFideId "2025337"]
[BlackFideId "3100898"]
[WhiteElo "2111"]
[BlackElo "2025"]
[Result "1-0"]
[Round "02"]
[TimeControl "180+2"]
[Date "2023.04.11"]
[WhiteClock "0:00:12"]
[BlackClock "0:00:01"]

1. e4 {[%clk 0:03:00]}  c6 {[%clk 0:02:59]} 2. d4 {[%clk 0:03:00]}  d5 {[%clk 0:02:59]} 3. Nc3 {[%clk 0:03:01]}  dxe4 {[%clk 0:02:59]} 4. Nxe4 {[%clk 0:03:02]}  Nf6 {[%clk 0:02:59]} 5. Nxf6+ {[%clk 0:03:02]}  exf6 {[%clk 0:03:00]} 6. Nf3 {[%clk 0:03:02]}  Bd6 {[%clk 0:03:00]} 7. Bd3 {[%clk 0:03:02]}  O-O {[%clk 0:03:00]} 8. O-O {[%clk 0:03:01]}  Re8 {[%clk 0:03:00]} 9. h3 {[%clk 0:03:00]}  Nd7 {[%clk 0:03:00]} 10. c3 {[%clk 0:03:00]}  Nf8 {[%clk 0:03:00]} 11. b4 {[%clk 0:02:52]}  Be6 {[%clk 0:02:58]} 12. a4 {[%clk 0:02:50]}  Qd7 {[%clk 0:02:56]} 13. Bd2 {[%clk 0:02:49]}  Rad8 {[%clk 0:02:52]} 14. Qc2 {[%clk 0:02:48]}  Bxh3 {[%clk 0:02:33]} 15. Nh2 {[%clk 0:02:19]}  Bxh2+ {[%clk 0:02:06]} 16. Kxh2 {[%clk 0:02:20]}  Be6 {[%clk 0:02:04]} 17. Rh1 {[%clk 0:02:11]}  Bd5 {[%clk 0:01:51]} 18. c4 {[%clk 0:01:55]}  Be6 {[%clk 0:01:48]} 19. Be3 {[%clk 0:01:48]}  f5 {[%clk 0:01:19]} 20. Kg1 {[%clk 0:01:35]}  Ng6 {[%clk 0:01:09]} 21. g3 {[%clk 0:01:30]}  Qc7 {[%clk 0:01:01]} 22. Kg2 {[%clk 0:01:13]}  a5 {[%clk 0:00:52]} 23. b5 {[%clk 0:00:58]}  cxb5 {[%clk 0:00:51]} 24. axb5 {[%clk 0:00:59]}  b6 {[%clk 0:00:51]} 25. Rac1 {[%clk 0:00:47]}  Rc8 {[%clk 0:00:51]} 26. Bxf5 {[%clk 0:00:39]}  Bxf5 {[%clk 0:00:50]} 27. Qxf5 {[%clk 0:00:36]}  Qb7+ {[%clk 0:00:46]} 28. Kg1 {[%clk 0:00:28]}  a4 {[%clk 0:00:46]} 29. Qd3 {[%clk 0:00:25]}  Ra8 {[%clk 0:00:44]} 30. Qa3 {[%clk 0:00:24]}  Qf3 {[%clk 0:00:43]} 31. c5 {[%clk 0:00:20]}  Re6 {[%clk 0:00:40]} 32. c6 {[%clk 0:00:20]}  Nf4 {[%clk 0:00:40]} 33. gxf4 {[%clk 0:00:07]}  Rg6+ {[%clk 0:00:38]} 34. Kf1 {[%clk 0:00:08]}  Qxh1+ {[%clk 0:00:38]} 35. Ke2 {[%clk 0:00:08]}  Qh5+ {[%clk 0:00:37]} 36. Kd2 {[%clk 0:00:09]}  h6 {[%clk 0:00:34]} 37. c7 {[%clk 0:00:09]}  Rc8 {[%clk 0:00:34]} 38. Qxa4 {[%clk 0:00:09]}  Qf5 {[%clk 0:00:34]} 39. Qa6 {[%clk 0:00:07]}  Rd6 {[%clk 0:00:30]} 40. Qb7 {[%clk 0:00:06]}  Kh7 {[%clk 0:00:29]} 41. Ra1 {[%clk 0:00:04]}  Qd7 {[%clk 0:00:29]} 42. Rc1 {[%clk 0:00:04]}  Re6 {[%clk 0:00:25]} 43. f5 {[%clk 0:00:04]}  Re7 {[%clk 0:00:25]} 44. Rc6 {[%clk 0:00:03]}  Rxc7 {[%clk 0:00:24]} 45. Qxb6 {[%clk 0:00:03]}  Rb7 {[%clk 0:00:22]} 46. Qc5 {[%clk 0:00:03]}  f6 {[%clk 0:00:20]} 47. b6 {[%clk 0:00:02]}  Qd8 {[%clk 0:00:19]} 48. Rd6 {[%clk 0:00:02]}  Red7 {[%clk 0:00:19]} 49. Rc6 {[%clk 0:00:03]}  Qe7 {[%clk 0:00:18]} 50. Rc8 {[%clk 0:00:03]}  Qe4 {[%clk 0:00:16]} 51. Ke2 {[%clk 0:00:04]}  Qg4+ {[%clk 0:00:15]} 52. Kd2 {[%clk 0:00:03]}  Qe4 {[%clk 0:00:15]} 53. Qf8 {[%clk 0:00:04]}  Qxf5 {[%clk 0:00:14]} 54. Qh8+ {[%clk 0:00:05]}  Kg6 {[%clk 0:00:15]} 55. Qe8+ {[%clk 0:00:05]}  Rf7 {[%clk 0:00:14]} 56. Qd8 {[%clk 0:00:05]}  Rbe7 {[%clk 0:00:14]} 57. Rc5 {[%clk 0:00:05]}  Qe4 {[%clk 0:00:13]} 58. Qd5 {[%clk 0:00:05]}  Qxd5 {[%clk 0:00:12]} 59. Rxd5 {[%clk 0:00:06]}  Rb7 {[%clk 0:00:13]} 60. Rb5 {[%clk 0:00:06]}  Rfd7 {[%clk 0:00:13]} 61. d5 {[%clk 0:00:07]}  h5 {[%clk 0:00:13]} 62. Kc3 {[%clk 0:00:07]}  h4 {[%clk 0:00:12]} 63. Kc4 {[%clk 0:00:08]}  Kf7 {[%clk 0:00:12]} 64. Rb1 {[%clk 0:00:08]}  g5 {[%clk 0:00:12]} 65. Kc5 {[%clk 0:00:09]}  f5 {[%clk 0:00:12]} 66. d6 {[%clk 0:00:09]}  Kf6 {[%clk 0:00:12]} 67. Bd4+ {[%clk 0:00:09]}  Kg6 {[%clk 0:00:12]} 68. Re1 {[%clk 0:00:10]}  g4 {[%clk 0:00:11]} 69. Kc6 {[%clk 0:00:10]}  Kg5 {[%clk 0:00:10]} 70. Re5 {[%clk 0:00:11]}  h3 {[%clk 0:00:10]} 71. Be3+ {[%clk 0:00:11]}  Kf6 {[%clk 0:00:09]} 72. Re8 {[%clk 0:00:12]}  Rh7 {[%clk 0:00:07]} 73. Rf8+ {[%clk 0:00:10]}  Ke5 {[%clk 0:00:06]} 74. Re8+ {[%clk 0:00:10]}  Kf6 {[%clk 0:00:07]} 75. Rf8+ {[%clk 0:00:10]}  Kg7 {[%clk 0:00:07]} 76. Kxb7 {[%clk 0:00:10]}  h2 {[%clk 0:00:07]} 77. Rc8 {[%clk 0:00:09]}  h1=Q+ {[%clk 0:00:07]} 78. Kb8 {[%clk 0:00:10]}  Kf6 {[%clk 0:00:07]} 79. Rc7 {[%clk 0:00:10]}  Rh8+ {[%clk 0:00:06]} 80. Rc8 {[%clk 0:00:09]}  Rxc8+ {[%clk 0:00:05]} 81. Kxc8 {[%clk 0:00:10]}  Qc6+ {[%clk 0:00:06]} 82. Kb8 {[%clk 0:00:10]}  Qxd6+ {[%clk 0:00:06]} 83. Ka8 {[%clk 0:00:10]}  Qc6+ {[%clk 0:00:06]} 84. b7 {[%clk 0:00:10]}  Ke5 {[%clk 0:00:04]} 85. Ka7 {[%clk 0:00:10]}  Qc7 {[%clk 0:00:04]} 86. Bb6 {[%clk 0:00:10]}  Qd7 {[%clk 0:00:03]} 87. Ka8 {[%clk 0:00:10]}  Qc6 {[%clk 0:00:03]} 88. Ka7 {[%clk 0:00:11]}  Qa4+ {[%clk 0:00:02]} 89. Kb8 {[%clk 0:00:11]}  f4 {[%clk 0:00:03]} 90. Kc8 {[%clk 0:00:11]}  Qe8+ {[%clk 0:00:02]} 91. Kc7 {[%clk 0:00:11]}  Qe7+ {[%clk 0:00:02]} 92. Kc8 {[%clk 0:00:11]}  Qe8+ {[%clk 0:00:03]} 93. Bd8 {[%clk 0:00:11]}  Qc6+ {[%clk 0:00:03]} 94. Bc7+ {[%clk 0:00:11]}  Ke6 {[%clk 0:00:01]} 95. b8=Q {[%clk 0:00:12]}  Qd7+ {[%clk 0:00:02]} 96. Kb7 {[%clk 0:00:12]}  Qd5+ {[%clk 0:00:02]} 97. Ka7 {[%clk 0:00:12]}  Qa2+ {[%clk 0:00:02]} 98. Kb7 {[%clk 0:00:12]}  Qb3+ {[%clk 0:00:01]} 99. Bb6 {[%clk 0:00:12]} 1-0


[Site "https://www.chess.com"]

[Event "Titled Tuesday Blitz April 11 Late 2023"]
[White "Grot, Blazej"]
[Black "Smith, Garrett L"]
[WhiteFideId "21835845"]
[BlackFideId "2024829"]
[WhiteElo "1823"]
[BlackElo "2047"]
[Result "1-0"]
[Round "02"]
[TimeControl "180+2"]
[Date "2023.04.11"]
[WhiteClock "0:00:04"]
[BlackClock "0:00:23"]

1. e4 {[%clk 0:03:00]}  c5 {[%clk 0:02:59]} 2. Nc3 {[%clk 0:03:00]}  Nc6 {[%clk 0:03:00]} 3. Bb5 {[%clk 0:03:00]}  Na5 {[%clk 0:02:58]} 4. Nf3 {[%clk 0:02:54]}  a6 {[%clk 0:02:59]} 5. Be2 {[%clk 0:02:53]}  b5 {[%clk 0:02:59]} 6. d4 {[%clk 0:02:54]}  cxd4 {[%clk 0:02:58]} 7. Qxd4 {[%clk 0:02:54]}  Bb7 {[%clk 0:02:53]} 8. Be3 {[%clk 0:02:53]}  e6 {[%clk 0:02:50]} 9. O-O {[%clk 0:02:52]}  Nf6 {[%clk 0:02:46]} 10. a4 {[%clk 0:02:48]}  Nc6 {[%clk 0:02:38]} 11. Qd2 {[%clk 0:02:43]}  b4 {[%clk 0:02:36]} 12. Nd5 {[%clk 0:02:27]}  Nxe4 {[%clk 0:02:23]} 13. Qd3 {[%clk 0:02:11]}  exd5 {[%clk 0:02:22]} 14. Qxd5 {[%clk 0:02:08]}  Nf6 {[%clk 0:02:20]} 15. Qg5 {[%clk 0:02:08]}  Ne4 {[%clk 0:02:08]} 16. Qd5 {[%clk 0:02:06]}  Na5 {[%clk 0:02:01]} 17. Qd4 {[%clk 0:01:49]}  Qf6 {[%clk 0:02:01]} 18. Qd3 {[%clk 0:01:41]}  Bc5 {[%clk 0:01:55]} 19. Rad1 {[%clk 0:01:04]}  d5 {[%clk 0:01:53]} 20. Bxc5 {[%clk 0:00:55]}  Nxc5 {[%clk 0:01:49]} 21. Qe3+ {[%clk 0:00:55]}  Ne6 {[%clk 0:01:49]} 22. Qb6 {[%clk 0:00:55]}  Qd8 {[%clk 0:01:44]} 23. Qxb4 {[%clk 0:00:55]}  Rc8 {[%clk 0:01:22]} 24. c4 {[%clk 0:00:52]}  d4 {[%clk 0:01:16]} 25. Rfe1 {[%clk 0:00:45]}  Rb8 {[%clk 0:00:38]} 26. Nxd4 {[%clk 0:00:33]}  Be4 {[%clk 0:00:37]} 27. Nxe6 {[%clk 0:00:24]}  Rxb4 {[%clk 0:00:19]} 28. Rxd8+ {[%clk 0:00:16]}  Ke7 {[%clk 0:00:20]} 29. Rxh8 {[%clk 0:00:15]}  fxe6 {[%clk 0:00:20]} 30. Bg4 {[%clk 0:00:08]}  Rxc4 {[%clk 0:00:19]} 31. Ra8 {[%clk 0:00:05]}  Rxa4 {[%clk 0:00:18]} 32. Ra7+ {[%clk 0:00:05]}  Kf6 {[%clk 0:00:18]} 33. f3 {[%clk 0:00:04]}  Bd5 {[%clk 0:00:18]} 34. Rxa6 {[%clk 0:00:04]}  g6 {[%clk 0:00:18]} 35. Bxe6 {[%clk 0:00:03]}  Bxe6 {[%clk 0:00:18]} 36. Raxe6+ {[%clk 0:00:04]}  Kg5 {[%clk 0:00:18]} 37. R1e5+ {[%clk 0:00:03]}  Kh6 {[%clk 0:00:19]} 38. Ra6 {[%clk 0:00:03]}  Ra1+ {[%clk 0:00:20]} 39. Kf2 {[%clk 0:00:03]}  Nb3 {[%clk 0:00:21]} 40. Rxa1 {[%clk 0:00:03]}  Nxa1 {[%clk 0:00:22]} 41. b4 {[%clk 0:00:04]}  Nc2 {[%clk 0:00:22]} 42. b5 {[%clk 0:00:04]}  Nd4 {[%clk 0:00:23]} 43. b6 {[%clk 0:00:04]} 1-0


[Site "https://www.chess.com"]